fUST/lending_fUST_20250915
["ID","MTS","AMOUNT","RATE_DAILY","PERIOD"]
[385466064,1757874655402,-500.0,0.00022191,3]
[385466065,1757874655413,-480.0,0.00022191,3]
[385466066,1757874655423,-506.42554039,0.00022191,3]
[385466067,1757874655433,-480.0,0.00022191,3]
[385466068,1757874655443,-480.0,0.00022191,3]
[385466069,1757874655451,-480.0,0.00022191,3]
[385466070,1757874655461,-550.26,0.00022191,3]
[385466071,1757874655470,-480.0,0.00022191,3]
[385466072,1757874655479,-480.0,0.00022191,3]
[385466073,1757874655488,-480.0,0.00022191,3]
[385466074,1757874655498,-480.0,0.00022191,3]
[385466075,1757874655507,-661.46,0.00022191,3]
[385466076,1757874655516,-480.0,0.00022191,3]
[385466077,1757874655525,-774.77,0.00022191,3]
[385466078,1757874655534,-480.0,0.00022191,3]
[385466079,1757874655543,-784.28,0.00022191,3]
[385466080,1757874655552,-480.0,0.00022191,3]
[385466081,1757874655562,-627.47,0.00022191,3]
[385466082,1757874655571,-480.0,0.00022191,3]
[385466083,1757874655580,-540.64,0.00022191,3]
[385466084,1757874655589,-480.0,0.00022191,3]
[385466085,1757874655599,-504.52477876,0.00022191,3]
[385466086,1757874655608,-1356.97,0.00022191,3]
[385466087,1757874655618,-480.0,0.00022191,3]
[385466088,1757874655627,-827.08,0.00022191,3]
[385466089,1757874655637,-1309.62,0.00022191,3]
[385466090,1757874655646,-480.0,0.00022191,3]
[385466091,1757874655657,-480.0,0.00022191,3]
[385466092,1757874655667,-480.0,0.00022191,3]
[385466093,1757874655676,-605.55,0.00022191,3]
[385466094,1757874655686,-480.0,0.00022191,3]
[385466095,1757874655695,-480.0,0.00022191,3]
[385466096,1757874655704,-480.0,0.00022191,3]
[385466097,1757874655713,-498.26,0.00022191,3]
[385466098,1757874655723,-480.0,0.00022191,3]
[385466099,1757874655732,-480.0,0.00022191,3]
[385466100,1757874655741,-1094.27,0.00022191,3]
[385466101,1757874655750,-480.0,0.00022191,3]
[385466102,1757874655759,-964.42,0.00022191,3]
[385466103,1757874655769,-500.0,0.00022191,3]
[385466104,1757874655782,-548.81,0.00022191,3]
[385466105,1757874655792,-480.0,0.00022191,3]
[385466106,1757874655801,-855.12,0.00022191,3]
[385466107,1757874655810,-3513.19,0.00022191,3]
[385466108,1757874655820,-1512.93,0.00022191,3]
[385466109,1757874655830,-480.0,0.00022191,3]
[385466110,1757874655839,-480.0,0.00022191,3]
[385466111,1757874655848,-869.7,0.00022191,3]
[385466112,1757874655858,-756.43,0.00022191,3]
[385466113,1757874655868,-480.0,0.00022191,3]
[385466114,1757874655877,-480.0,0.00022191,3]
[385466115,1757874655887,-480.0,0.00022191,3]
[385466116,1757874655896,-514.61,0.00022191,3]
[385466117,1757874655907,-300.0,0.00022191,2]
[385466118,1757874655917,-498.56,0.00022191,3]
[385466119,1757874655926,-480.0,0.00022191,3]
[385466120,1757874655935,-620.86,0.00022191,3]
[385466121,1757874655948,-3642.92,0.00022191,3]
[385466122,1757874655957,-500.07,0.00022191,3]
[385466123,1757874655966,-851.8,0.00022191,3]
[385466124,1757874655976,-480.0,0.00022191,3]
[385466125,1757874655985,-21116.87,0.00022191,3]
[385466126,1757874655994,-480.0,0.00022191,3]
[385466127,1757874656003,-1362.92,0.00022191,3]
[385466128,1757874656012,-555.48,0.00022191,3]
[385466129,1757874656022,-1120.68,0.00022191,3]
[385466130,1757874656031,-1351.52,0.00022191,3]
[385466131,1757874656041,-620.21625522,0.00022191,3]
[385466132,1757874656050,-480.0,0.00022191,3]
[385466133,1757874656060,-480.0,0.00022191,3]
[385466134,1757874656069,-826.56,0.00022191,3]
[385466135,1757874656078,-2012.7,0.00022191,3]
[385466136,1757874656087,-1229.52,0.00022191,3]
[385466137,1757874656097,-686.85,0.00022191,3]
[385466138,1757874656106,-1116.94,0.00022191,3]
[385466139,1757874656116,-443.96247478,0.00022191,3]
[385466140,1757874656165,-2043.26,0.00022191,3]
[385466141,1757874656193,-480.0,0.00022191,3]
[385466142,1757874656203,-2638.27,0.00022191,3]
[385466143,1757874656214,-480.0,0.00022191,3]
[385466144,1757874656225,-173.26400369,0.00022191,3]
[385466145,1757874656234,-2831.97,0.00022191,3]
[385466146,1757874656244,-480.0,0.00022191,3]
[385466147,1757874656253,-609.06,0.00022191,3]
[385466148,1757874656263,-480.0,0.00022191,3]
[385466149,1757874656272,-3658.13,0.00022191,3]
[385466150,1757874656281,-480.0,0.00022191,3]
[385466151,1757874656290,-2189.01,0.00022191,3]
[385466152,1757874656299,-532.78,0.00022191,3]
[385466153,1757874656309,-1063.49,0.00022191,3]
[385466154,1757874656324,-480.0,0.00022191,3]
[385466155,1757874656334,-848.0,0.00022191,3]
[385466156,1757874656343,-480.0,0.00022191,3]
[385466157,1757874656352,-480.0,0.00022191,3]
[385466158,1757874656362,-480.0,0.00022191,3]
[385466159,1757874656371,-480.0,0.00022191,3]
[385466160,1757874656380,-480.0,0.00022191,3]
[385466161,1757874656389,-12378.99,0.00022191,3]
[385466162,1757874656398,-480.0,0.00022191,3]
[385466163,1757874656407,-480.0,0.00022191,3]
[385466164,1757874656417,-480.0,0.00022191,3]
[385466165,1757874656427,-347.28174092,0.00022191,3]
[385466166,1757874656436,-1131.89,0.00022191,3]
[385466167,1757874656445,-741.12,0.00022191,3]
[385466168,1757874656454,-1064.26,0.00022191,3]
[385466169,1757874656463,-707.88,0.00022191,3]
[385466170,1757874656473,-713.15,0.00022191,3]
[385466171,1757874656482,-480.0,0.00022191,3]
[385466172,1757874656491,-2004.13,0.00022191,3]
[385466173,1757874656500,-679.11,0.00022191,3]
[385466174,1757874656510,-6192.28,0.00022191,3]
[385466175,1757874656519,-480.0,0.00022191,3]
[385466176,1757874656528,-864.41,0.00022191,3]
[385466177,1757874656537,-1213.36,0.00022191,3]
[385466178,1757874656546,-1671.32,0.00022191,3]
[385466179,1757874656556,-1382.7,0.00022191,3]
[385466180,1757874656566,-2534.17,0.00022191,3]
[385466181,1757874656575,-480.0,0.00022191,3]
[385466182,1757874656585,-559.82,0.00022191,3]
[385466183,1757874656594,-709.6,0.00022191,3]
[385466184,1757874656603,-2079.43,0.00022191,3]
[385466185,1757874656613,-480.0,0.00022191,3]
[385466186,1757874656622,-2420.7,0.00022191,3]
[385466187,1757874656632,-573.1,0.00022191,3]
[385466188,1757874656641,-2484.62,0.00022191,3]
[385466189,1757874656651,-949.0,0.00022191,3]
[385466190,1757874656662,-1009.52,0.00022191,3]
[385466191,1757874656671,-480.0,0.00022191,3]
[385466192,1757874656681,-2097.87,0.00022191,3]
[385466193,1757874656690,-1148.3,0.00022191,3]
[385466194,1757874656700,-4949.58,0.00022191,3]
[385466195,1757874656710,-679.74,0.00022191,3]
[385466196,1757874656719,-708.28,0.00022191,3]
[385466197,1757874656729,-480.0,0.00022191,3]
[385466198,1757874656738,-989.66,0.00022191,3]
[385466199,1757874656748,-480.0,0.00022191,3]
[385466200,1757874656757,-1632.74,0.00022191,3]
[385466201,1757874656767,-923.31,0.00022191,3]
[385466202,1757874656779,-659.29,0.00022191,3]
[385466203,1757874656789,-480.0,0.00022191,3]
[385466204,1757874656799,-480.0,0.00022191,3]
[385466205,1757874656808,-542.95,0.00022191,3]
[385466206,1757874656948,-736.02,0.00022191,3]
[385466207,1757874656957,-480.0,0.00022191,3]
[385466208,1757874656967,-672.38,0.00022191,3]
[385466209,1757874656977,-480.0,0.00022191,3]
[385466210,1757874656987,-480.0,0.00022191,3]
[385466211,1757874656996,-480.0,0.00022191,2]
[385466212,1757874657005,-612.72,0.00022191,3]
[385466213,1757874657014,-1067.14,0.00022191,3]
[385466214,1757874657024,-5709.28,0.00022191,3]
[385466215,1757874657033,-751.57,0.00022191,3]
[385466216,1757874657043,-1104.31,0.00022191,3]
[385466217,1757874657052,-1206.45,0.000222,7]
[385466218,1757874657062,-291.93941595,0.000222,2]
[385466219,1757874657071,-151.0,0.000222,8]
[385466220,1757874657081,-151.0,0.000222,7]
[385466221,1757874657091,-237.0,0.00022203,2]
[385466222,1757874657101,-5888.0,0.00022207,2]
[385466223,1757874657110,-300.0,0.00022252,20]
[385466224,1757874657120,-300.0,0.00022252,20]
[385466225,1757874657130,-300.0,0.00022252,20]
[385466226,1757874657139,-300.0,0.00022252,20]
[385466227,1757874657148,-300.0,0.00022252,20]
[385466228,1757874657158,-300.0,0.00022252,20]
[385466229,1757874657167,-300.0,0.00022252,20]
[385466230,1757874657176,-300.0,0.00022252,20]
[385466231,1757874657186,-300.0,0.00022252,20]
[385466232,1757874657196,-300.0,0.00022252,20]
[385466233,1757874657205,-300.0,0.00022252,20]
[385466234,1757874657214,-300.0,0.00022252,20]
[385466235,1757874657223,-300.0,0.00022252,20]
[385466236,1757874657233,-300.0,0.00022252,20]
[385466237,1757874657242,-300.0,0.00022252,20]
[385466238,1757874657251,-216.0,0.00022288,2]
[385466239,1757874657261,-160.0,0.00022289,3]
[385466240,1757874657270,-817.79,0.000223,10]
[385466241,1757874657279,-151.0,0.000223,7]
[385466242,1757874657288,-151.0,0.000223,6]
[385466243,1757874657298,-237.0,0.00022309,2]
[385466244,1757874657307,-2696.0,0.00022315,2]
[385466245,1757874657316,-168.0,0.00022336,2]
[385466246,1757874657327,-346.0,0.00022343,2]
[385466247,1757874657336,-500.0,0.00022365,2]
[385466248,1757874657347,-976.0,0.00022385,2]
[385466249,1757874657356,-659.943,0.00022385,2]
[385466250,1757874657365,-2156.0,0.00022385,2]
[385466251,1757874657374,-409.0,0.00022385,2]
[385466252,1757874657384,-410.748,0.00022385,2]
[385466253,1757874657393,-168.0,0.00022398,2]
[385466254,1757874657403,-1953.15345729,0.00022398,2]
[385466255,1757874657413,-3000.0,0.000224,2]
[385466256,1757874657423,-3000.0,0.000224,2]
[385466257,1757874657433,-291.93941595,0.000224,2]
[385466258,1757874657443,-151.0,0.000224,6]
[385466259,1757874657453,-151.0,0.000224,7]
[385466260,1757874657463,-151.0,0.000224,9]
[385466261,1757874657474,-151.0,0.000224,9]
[385466262,1757874657485,-151.0,0.000224,10]
[385466263,1757874657495,-3000.0,0.0002241,2]
[385466264,1757874657505,-3000.0,0.0002241,2]
[385466265,1757874657518,-168.0,0.00022419,2]
[385466266,1757874657528,-3000.0,0.0002242,2]
[385466267,1757874657538,-3000.0,0.0002242,2]
[385466268,1757874657548,-150.0,0.0002243,2]
[385466269,1757874657558,-150.0,0.0002243,2]
[385466270,1757874657567,-150.184,0.0002243,2]
[385466271,1757874657577,-3000.0,0.0002243,2]
[385466272,1757874657587,-3000.0,0.0002243,2]
[385466273,1757874657597,-150.169,0.0002244,2]
[385466274,1757874657606,-150.0,0.0002244,2]
[385466275,1757874657616,-3153.141908,0.0002244,2]
[385466276,1757874657627,-3000.0,0.0002244,2]
[385466277,1757874657637,-3000.0,0.0002245,2]
[385466278,1757874657647,-5162.78665595,0.0002246,7]
[385466279,1757874657656,-10580.53002232,0.0002246,7]
[385466280,1757874657666,-3000.0,0.0002246,2]
[385466281,1757874657675,-169.0,0.00022465,2]
[385466282,1757874657685,-151.0,0.00022465,2]
[385466283,1757874657694,-157.0,0.00022465,2]
[385466284,1757874657704,-279.21531837,0.00022465,2]
[385466285,1757874657713,-263.87266021,0.00022465,2]
[385466286,1757874657723,-243.81324317,0.00022465,2]
[385466287,1757874657732,-151.0,0.00022465,2]
[385466288,1757874657743,-151.0,0.00022465,2]
[385466289,1757874657752,-151.0,0.00022465,2]
[385466290,1757874657761,-1403.0,0.00022465,2]
[385466291,1757874657771,-500.0,0.00022465,2]
[385466292,1757874657785,-293.24904091,0.00022465,2]
[385466293,1757874657795,-500.0,0.00022465,2]
[385466294,1757874657804,-151.0,0.00022465,2]
[385466295,1757874657814,-500.0,0.00022465,2]
[385466296,1757874657825,-295.99239349,0.00022465,2]
[385466297,1757874657835,-500.0,0.00022465,2]
[385466298,1757874657844,-157.0,0.00022465,2]
[385466299,1757874657854,-151.0,0.00022465,2]
[385466300,1757874657866,-406.7417111,0.00022465,2]
[385466301,1757874657875,-500.0,0.00022465,2]
[385466302,1757874657885,-500.0,0.00022465,2]
[385466303,1757874657896,-659.2,0.00022465,3]
[385466304,1757874657906,-480.0,0.00022465,3]
[385466305,1757874657916,-800.9,0.00022465,3]
[385466306,1757874657927,-860.26,0.00022465,3]
[385466307,1757874657938,-480.0,0.00022465,3]
[385466308,1757874657948,-739.8,0.00022465,3]
[385466309,1757874657958,-591.28652004,0.00022465,3]
[385466310,1757874657967,-480.0,0.00022465,3]
[385466311,1757874657976,-480.0,0.00022465,3]
[385466312,1757874657985,-500.0,0.00022465,3]
[385466313,1757874657995,-480.0,0.00022465,3]
[385466314,1757874658004,-480.0,0.00022465,3]
[385466315,1757874658013,-480.0,0.00022465,3]
[385466316,1757874658023,-480.0,0.00022465,3]
[385466317,1757874658032,-550.26,0.00022465,3]
[385466318,1757874658041,-480.0,0.00022465,3]
[385466319,1757874658050,-480.0,0.00022465,3]
[385466320,1757874658059,-480.0,0.00022465,3]
[385466321,1757874658069,-480.0,0.00022465,3]
[385466322,1757874658078,-661.46,0.00022465,3]
[385466323,1757874658088,-480.0,0.00022465,3]
[385466324,1757874658097,-774.77,0.00022465,3]
[385466325,1757874658107,-480.0,0.00022465,3]
[385466326,1757874658116,-784.28,0.00022465,3]
[385466327,1757874658125,-480.0,0.00022465,3]
[385466328,1757874658135,-627.47,0.00022465,3]
[385466329,1757874658144,-540.64,0.00022465,3]
[385466330,1757874658153,-1356.97,0.00022465,3]
[385466331,1757874658162,-480.0,0.00022465,3]
[385466332,1757874658172,-827.08,0.00022465,3]
[385466333,1757874658181,-1309.62,0.00022465,3]
[385466334,1757874658190,-480.0,0.00022465,3]
[385466335,1757874658200,-605.55,0.00022465,3]
[385466336,1757874658209,-480.0,0.00022465,3]
[385466337,1757874658218,-480.0,0.00022465,3]
[385466338,1757874658227,-498.26,0.00022465,3]
[385466339,1757874658236,-480.0,0.00022465,3]
[385466340,1757874658245,-480.0,0.00022465,3]
[385466341,1757874658254,-1094.27,0.00022465,3]
[385466342,1757874658263,-480.0,0.00022465,3]
[385466343,1757874658273,-964.42,0.00022465,3]
[385466344,1757874658282,-500.0,0.00022465,3]
[385466345,1757874658291,-548.81,0.00022465,3]
[385466346,1757874658301,-855.12,0.00022465,3]
[385466347,1757874658311,-3513.19,0.00022465,3]
[385466348,1757874658322,-1512.93,0.00022465,3]
[385466349,1757874658332,-480.0,0.00022465,3]
[385466350,1757874658342,-480.0,0.00022465,3]
[385466351,1757874658352,-869.7,0.00022465,3]
[385466352,1757874658361,-756.43,0.00022465,3]
[385466353,1757874658375,-586.66437099,0.00022465,3]
[385466354,1757874658384,-480.0,0.00022465,3]
[385466355,1757874658394,-480.0,0.00022465,3]
[385466356,1757874658403,-514.61,0.00022465,3]
[385466357,1757874658413,-300.0,0.00022465,2]
[385466358,1757874658423,-498.56,0.00022465,3]
[385466359,1757874658433,-620.86,0.00022465,3]
[385466360,1757874658443,-3642.92,0.00022465,3]
[385466361,1757874658452,-500.07,0.00022465,3]
[385466362,1757874658462,-851.8,0.00022465,3]
[385466363,1757874658471,-21116.87,0.00022465,3]
[385466364,1757874658480,-480.0,0.00022465,3]
[385466365,1757874658490,-1362.92,0.00022465,3]
[385466366,1757874658499,-555.48,0.00022465,3]
[385466367,1757874658508,-1120.68,0.00022465,3]
[385466368,1757874658517,-1351.52,0.00022465,3]
[385466369,1757874658526,-480.0,0.00022465,3]
[385466370,1757874658536,-480.0,0.00022465,3]
[385466371,1757874658545,-826.56,0.00022465,3]
[385466372,1757874658554,-2012.7,0.00022465,3]
[385466373,1757874658564,-1229.52,0.00022465,3]
[385466374,1757874658573,-686.85,0.00022465,3]
[385466375,1757874658583,-1116.94,0.00022465,3]
[385466376,1757874658593,-2043.26,0.00022465,3]
[385466377,1757874658602,-407.12969967,0.00022465,3]
[385466378,1757874658612,-2638.27,0.00022465,3]
[385466379,1757874658621,-480.0,0.00022465,3]
[385466380,1757874658631,-2831.97,0.00022465,3]
[385466381,1757874658640,-480.0,0.00022465,3]
[385466382,1757874658649,-609.06,0.00022465,3]
[385466383,1757874658659,-480.0,0.00022465,3]
[385466384,1757874658668,-3658.13,0.00022465,3]
[385466385,1757874658677,-480.0,0.00022465,3]
[385466386,1757874658687,-2189.01,0.00022465,3]
[385466387,1757874658696,-532.78,0.00022465,3]
[385466388,1757874658705,-1063.49,0.00022465,3]
[385466389,1757874658714,-480.0,0.00022465,3]
[385466390,1757874658724,-848.0,0.00022465,3]
[385466391,1757874658734,-480.0,0.00022465,3]
[385466392,1757874658743,-480.0,0.00022465,3]
[385466393,1757874658752,-480.0,0.00022465,3]
[385466394,1757874658762,-480.0,0.00022465,3]
[385466395,1757874658771,-480.0,0.00022465,3]
[385466396,1757874658785,-12378.99,0.00022465,3]
[385466397,1757874658794,-480.0,0.00022465,3]
[385466398,1757874658804,-480.0,0.00022465,3]
[385466399,1757874658813,-1131.89,0.00022465,3]
[385466400,1757874658824,-741.12,0.00022465,3]
[385466401,1757874658834,-1064.26,0.00022465,3]
[385466402,1757874658843,-707.88,0.00022465,3]
[385466403,1757874658853,-713.15,0.00022465,3]
[385466404,1757874658863,-600.18280296,0.00022465,3]
[385466405,1757874658873,-679.11,0.00022465,3]
[385466406,1757874658883,-6192.28,0.00022465,3]
[385466407,1757874658893,-2004.13,0.00022465,3]
[385466408,1757874658902,-480.0,0.00022465,3]
[385466409,1757874658913,-864.41,0.00022465,3]
[385466410,1757874658923,-1213.36,0.00022465,3]
[385466411,1757874658933,-1671.32,0.00022465,3]
[385466412,1757874658942,-1382.7,0.00022465,3]
[385466413,1757874658952,-2534.17,0.00022465,3]
[385466414,1757874658961,-480.0,0.00022465,3]
[385466415,1757874658970,-559.82,0.00022465,3]
[385466416,1757874658979,-709.6,0.00022465,3]
[385466417,1757874658988,-2079.43,0.00022465,3]
[385466418,1757874658997,-480.0,0.00022465,3]
[385466419,1757874659006,-2420.7,0.00022465,3]
[385466420,1757874659015,-573.1,0.00022465,3]
[385466421,1757874659025,-2484.62,0.00022465,3]
[385466422,1757874659034,-949.0,0.00022465,3]
[385466423,1757874659043,-1009.52,0.00022465,3]
[385466424,1757874659052,-480.0,0.00022465,3]
[385466425,1757874659061,-2097.87,0.00022465,3]
[385466426,1757874659071,-1148.3,0.00022465,3]
[385466427,1757874659080,-4949.58,0.00022465,3]
[385466428,1757874659090,-679.74,0.00022465,3]
[385466429,1757874659100,-708.28,0.00022465,3]
[385466430,1757874659109,-480.0,0.00022465,3]
[385466431,1757874659119,-989.66,0.00022465,3]
[385466432,1757874659128,-480.0,0.00022465,3]
[385466433,1757874659137,-1632.74,0.00022465,3]
[385466434,1757874659146,-923.31,0.00022465,3]
[385466435,1757874659155,-659.29,0.00022465,3]
[385466436,1757874659165,-480.0,0.00022465,3]
[385466437,1757874659174,-480.0,0.00022465,3]
[385466438,1757874659183,-542.95,0.00022465,3]
[385466439,1757874659192,-736.02,0.00022465,3]
[385466440,1757874659201,-480.0,0.00022465,3]
[385466441,1757874659210,-672.38,0.00022465,3]
[385466442,1757874659219,-480.0,0.00022465,3]
[385466443,1757874659229,-480.0,0.00022465,2]
[385466444,1757874659238,-612.72,0.00022465,3]
[385466445,1757874659247,-1067.14,0.00022465,3]
[385466446,1757874659256,-1177.3530555,0.00022465,3]
[385466448,1757874685566,1757.83811159,0.000199,2]
[385466453,1757874878593,2178.33874037,0.000199,2]
[385466454,1757874878620,492.65306077,0.000199,2]
[385466465,1757875060508,2581.95874087,0.000199,2]
[385466471,1757875246481,2495.89344973,0.000199,2]
[385466473,1757875299038,226.02086361,0.0002012,2]
[385466481,1757875432251,2412.69700128,0.000199,2]
[385466482,1757875432365,1151.0,0.00024,30]
[385466488,1757875617926,1790.78688374,0.000199,2]
[385466489,1757875617952,541.48688428,0.000199,2]
[385466494,1757875810626,2254.53130897,0.000199,2]
[385466533,1757875831955,-180.06482334,0.00020344,2]
[385466535,1757875831964,-168.0,0.00020346,2]
[385466537,1757875831974,-193.219979,0.00020357,2]
[385466539,1757875831984,-216.0,0.00020612,2]
[385466541,1757875831993,-168.0,0.00020633,2]
[385466543,1757875832003,-209.20911766,0.00020854,2]
[385466545,1757875832013,-237.0,0.00021067,2]
[385466547,1757875832022,-168.0,0.00021093,2]
[385466549,1757875832031,-2254.53130887,0.00021149,2]
[385466551,1757875832040,-168.0,0.0002123,2]
[385466553,1757875832050,-168.0,0.00021401,2]
[385466555,1757875832060,-632.64,0.0002143,3]
[385466558,1757875832069,-316.32,0.0002143,3]
[385466560,1757875832079,-158.16,0.0002143,3]
[385466562,1757875832089,-484.27,0.0002143,10]
[385466564,1757875832101,-474.48,0.0002143,3]
[385466566,1757875832111,-300.0,0.00021436,2]
[385466567,1757875832123,-593.0,0.00021436,2]
[385466568,1757875832136,-500.0,0.00021439,2]
[385466570,1757875832148,-409.99595257,0.00021439,2]
[385466571,1757875832157,-500.0,0.00021439,2]
[385466572,1757875832166,-228.78580527,0.00021439,2]
[385466573,1757875832175,-500.0,0.00021439,2]
[385466575,1757875832184,-500.0,0.00021439,2]
[385466577,1757875832194,-500.0,0.00021439,2]
[385466578,1757875832203,-432.86930412,0.00021439,2]
[385466579,1757875832212,-500.0,0.00021439,2]
[385466580,1757875832221,-500.0,0.00021439,2]
[385466581,1757875832230,-500.0,0.00021439,2]
[385466582,1757875832239,-500.0,0.00021439,2]
[385466583,1757875832249,-159702.0,0.0002144,2]
[385466584,1757875832258,-1128.71205544,0.00021453,2]
[385466585,1757875832267,-1608.89840142,0.00021453,2]
[385466586,1757875832276,-1128.71205542,0.00021478,2]
[385466587,1757875832285,-1128.71205542,0.00021503,2]
[385466588,1757875832295,-1128.71205542,0.00021528,2]
[385466589,1757875832304,-11470.53815662,0.00021553,2]
[385466590,1757875832313,-1128.71205542,0.00021553,2]
[385466591,1757875832323,-370000.0,0.00021651,2]
[385466592,1757875832332,-336.0,0.00021653,2]
[385466593,1757875832341,-501.91968373,0.00021673,2]
[385466594,1757875832350,-500.0,0.00021673,2]
[385466595,1757875832360,-500.0,0.00021673,2]
[385466596,1757875832370,-500.0,0.00021673,2]
[385466597,1757875832380,-500.93670822,0.00021673,2]
[385466598,1757875832390,-502.79872657,0.00021673,2]
[385466599,1757875832399,-500.0,0.00021673,2]
[385466600,1757875832409,-500.0,0.00021673,2]
[385466601,1757875832418,-500.0,0.00021673,2]
[385466602,1757875832427,-500.2014928,0.00021673,2]
[385466603,1757875832436,-500.0,0.00021673,2]
[385466604,1757875832446,-501.39610641,0.00021673,2]
[385466605,1757875832455,-500.0,0.00021673,2]
[385466606,1757875832464,-500.0,0.00021673,2]
[385466607,1757875832473,-160.06903187,0.00021673,2]
[385466608,1757875832482,-500.0,0.00021673,2]
[385466609,1757875832491,-500.0,0.00021673,2]
[385466610,1757875832500,-500.0,0.00021673,2]
[385466611,1757875832510,-500.0,0.00021673,2]
[385466612,1757875832519,-500.0,0.00021673,2]
[385466613,1757875832528,-500.0,0.00021673,2]
[385466614,1757875832537,-500.0,0.00021673,2]
[385466615,1757875832547,-501.71597531,0.00021673,2]
[385466616,1757875832556,-500.0,0.00021673,2]
[385466617,1757875832565,-500.0,0.00021673,2]
[385466618,1757875832576,-500.0,0.00021673,2]
[385466619,1757875832585,-500.38140165,0.00021673,2]
[385466620,1757875832594,-373.77306036,0.00021673,2]
[385466621,1757875832604,-482.70043447,0.00021673,2]
[385466622,1757875832615,-500.0,0.00021673,2]
[385466623,1757875832625,-500.0,0.00021673,2]
[385466624,1757875832637,-500.0,0.00021673,2]
[385466625,1757875832651,-500.0,0.00021673,2]
[385466626,1757875832660,-500.0,0.00021673,2]
[385466627,1757875832670,-500.0,0.00021673,2]
[385466628,1757875832679,-500.0,0.00021713,2]
[385466629,1757875832688,-425.33882417,0.00021791,2]
[385466630,1757875832697,-847.27885267,0.000218,2]
[385466631,1757875832706,-160.0,0.000218,2]
[385466632,1757875832715,-160.0,0.00021801,2]
[385466633,1757875832724,-233.1999649,0.00021801,2]
[385466634,1757875832734,-217.77739939,0.00021801,2]
[385466635,1757875832743,-336.0,0.00021814,2]
[385466636,1757875832752,-200.0,0.00021916,2]
[385466637,1757875832761,-251.89630539,0.00021916,5]
[385466638,1757875832770,-480.0,0.00021917,2]
[385466639,1757875832780,-409.38376704,0.00021917,2]
[385466640,1757875832789,-480.0,0.00021917,2]
[385466641,1757875832798,-480.0,0.00021917,2]
[385466642,1757875832807,-480.0,0.00021917,2]
[385466643,1757875832816,-480.0,0.00021917,2]
[385466644,1757875832826,-480.0,0.00021917,2]
[385466645,1757875832835,-480.21,0.00021917,2]
[385466646,1757875832844,-480.0,0.00021917,2]
[385466647,1757875832853,-480.0,0.00021917,2]
[385466648,1757875832863,-480.0,0.00021917,2]
[385466649,1757875832872,-837.19,0.00021917,2]
[385466650,1757875832881,-843.87,0.00021917,2]
[385466651,1757875832890,-480.0,0.00021917,2]
[385466652,1757875832899,-536.13,0.00021917,2]
[385466653,1757875832909,-543.25,0.00021917,2]
[385466654,1757875832927,-480.0,0.00021917,2]
[385466655,1757875832939,-481.47,0.00021917,2]
[385466656,1757875832948,-480.0,0.00021917,2]
[385466657,1757875832958,-480.0,0.00021917,2]
[385466658,1757875832967,-480.0,0.00021917,2]